{"text_format":"1","workbook":"xlsx","n_sheets":4,"sheets":["DADOS ","Orientad x alunos","Nº Alunos","N° bolsas "],"not_rendered":{"charts":3,"images":2,"macros":0,"external_links":1,"defined_names":3,"comments":1,"pivot_tables":3},"unopened":[],"bounds":{"document_bytes":16777216,"sheet_cells":100000,"rows_first":2000,"rows_last":500,"rows_between":2000,"halvings":0,"cell_chars":16384,"cell_head_chars":4096},"cells_cut":0,"cells_raw":0,"read":"whole","date_system":"1900"}

{"sheet":"DADOS ","index":0,"n_rows":40,"n_cols":15,"rows_kept":40,"cut":false,"hidden":false,"merged":[]}
[]
[null,null,"BANCO DE DADOS DE ALUNOS DA PÓS-GRADUAÇÃO"]
[]
[null,null,"EM GENÉTICA E MELHORAMENTO DE PLANTAS"]
[]
["NOME DO ALUNO","Sexo","MATRICULA     UENF","Matricula SisFAPERJ","BOLSA","Ano Inicial no Curso","Semestre","Data de Matric.","Prev. Térm Curso","NIVEL","ORIENTADOR","situação  Aluno","Laboratorio","E-Mail","Linha de Pesquisa"]
["Alex Souza Rodrigues","M",202113220015,null,"CAPES       (PROEX)",2021,"1º","2021-03-02",{"$f":"IF(J7=\"DS\",H7+1460,H7+728)-2","v":"2025-02-27"},"DS","Helaine Christine Cancela Ramos","Ativo","LMGV","alexsouzarodrigues@outlook.com","Análise Genômica"]
["Catiane dos Santos Braga","F",202013220010,2020011519,"CAPES       (PROEX)",2020,"1º","2020-03-01",{"$f":"IF(J8=\"DS\",H8+1460,H8+728)","v":"2024-02-29"},"DS","Helaine Christine Cancela Ramos","Ativo","LMGV","katianedossantos16@hotmail.com","Melhoramento de Plantas"]
["Cleudiane Lopes Leite","F",202113220034,null,"CAPES       (PROEX)",2021,"1º","2021-03-01",{"$f":"IF(J9=\"DS\",H9+1460,H9+728)","v":"2025-02-28"},"DS","Rogério Figueiredo Daher","Ativo","LEAG","cleudiane.lopes25@gmail.com","Melhoramento de Plantas"]
["Danielle Leal Lamego","F",202113120021,null,"CAPES       (PROEX)",2021,"1º","2021-03-05",{"$f":"IF(J10=\"DS\",H10+1460,H10+728)-5","v":"2023-02-26"},"MS","Antonio Teixeira do Amaral Junior","Ativo","LMGV","danieleallamego@gmail.com","Melhoramento de Plantas"]
["Débora Souza Mendes","F",201913220016,null,"FAPERJ      (Nota 10) ",2019,"1º","2019-03-01",{"$f":"IF(J11=\"DS\",H11+1460,H11+728)","v":"2023-02-28"},"DS","Alexandre Pio Viana","Ativo","LMGV","deborasouzamendes@yahoo.com.br","Melhoramento de Plantas"]
["Divino Rosa dos Santos Junior","M",201913220023,null,"CAPES       (PROEX)",2019,"1º","2019-03-01",{"$f":"IF(J12=\"DS\",H12+1460,H12+728)","v":"2023-02-28"},"DS","Antonio Teixeira do Amaral Junior","Ativo","LMGV","juniorifagro@gmail.com","Melhoramento de Plantas"]
["Fernanda Vargas Valadares","F",201913220007,2019004890,"CAPES       (PROEX)       (Empréstimo)",2019,"1º","2019-03-01",{"$f":"IF(J13=\"DS\",H13+1460,H13+728)","v":"2023-02-28"},"DS","Marcelo Vivas","Ativo","LEAG","fenanda_valadares@hotmail.com","Melhoramento de Plantas"]
["Gabriela Tavares Pires","F",202213220016,null,"CAPES       (PROEX)",2022,"1º","2022-03-01",{"$f":"IF(J14=\"DS\",H14+1460,H14+728)","v":"2026-02-28"},"DS","Geraldo de Amaral Gravina","Ativo","LEAG","gabrielatavaresp18@gmail.com","Melhoramento de Plantas"]
["Geferson Rocha Santos","M",202223220005,null,"CAPES       (PROEX)",2022,"1º","2022-03-01",{"$f":"IF(J15=\"DS\",H15+1460,H15+728)-4","v":"2026-02-24"},"DS","Marcelo Vivas","Ativo","LEAG","gefersonrocha38@gmail.com","Melhoramento de Plantas"]
["Hércules dos Santos Pereira","M",202123120027,2022059110,"FAPERJ      (Nota 10) ",2021,"2º","2021-08-01",{"$f":"IF(J16=\"DS\",H16+1460,H16+728)","v":"2023-07-30"},"MS","Marcelo Vivas","Ativo","LEAG","herculeshsp@gmail.com","Melhoramento de Plantas"]
["Izaias Rodrigues da Silva Junior","M",201913220004,2019005624,"CAPES       (PROEX)",2019,"1º","2019-03-01",{"$f":"IF(J17=\"DS\",H17+1460,H17+728)","v":"2023-02-28"},"DS","Messias Gonzaga Pereira","Ativo","LMGV","izaias_jr@hotmail.com","Melhoramento de Plantas"]
["Jhean Torres Leite","M",201913220026,2015041537,"CAPES       (PROEX)",2019,"1º","2019-03-01",{"$f":"IF(J18=\"DS\",H18+1460,H18+728)","v":"2023-02-28"},"DS","Antonio Teixeira do Amaral Junior","Ativo","LMGV","torresjhean@gmail.com","Melhoramento de Plantas"]
["Joameson Antunes Lima","M",202013220009,2020011721,"CAPES       (PROEX)",2020,"1º","2020-03-01",{"$f":"IF(J19=\"DS\",H19+1460,H19+728)","v":"2024-02-29"},"DS","Alexandre Pio Viana","Ativo","LMGV","joameson.lima@unemat.br","Melhoramento de Plantas"]
["Juliana Pacheco Ventura","F",202213220023,null,"CAPES       (PROEX)",2022,"1º","2022-03-01",{"$f":"IF(J20=\"DS\",H20+1460,H20+728)","v":"2026-02-28"},"DS","Geraldo de Amaral Gravina","Ativo","LEAG","julianaventura07@gmail.com","Melhoramento de Plantas"]
["Julie Anne Vieira Salgado de Oliveira","F",202123120026,2022057869,"FAPERJ      (Nota 10) ",2021,"2º","2021-08-01",{"$f":"IF(J21=\"DS\",H21+1460,H21+728)","v":"2023-07-30"},"MS","Alexandre Pio Viana","Ativo","LMGV","julie.vso@hotmail.com","Melhoramento de Plantas"]
["Karina Kazue Nakamura Fukuji","F",202013220004,null,"CAPES       (PROEX)",2020,"1º","2020-03-01",{"$f":"IF(J22=\"DS\",H22+1460,H22+728)","v":"2024-02-29"},"DS","Rosana Rodrigues","Ativo","LMGV","karyna-kazue@hotmail.com","Melhoramento de Plantas"]
["Larissa Maximiano Resende","F",202013220035,null,"CAPES       (PROEX)",2020,"1º","2020-03-01",{"$f":"IF(J23=\"DS\",H23+1460,H23+728)","v":"2024-02-29"},"DS","Valdirene Moreira Gomes","Ativo","LMGV","larissa.maximiano.resende@gmail.com","Análise Genômica"]
["Letícia da Silva Araújo","F",201913220008,2019005403,"CAPES       (PROEX)",2019,"1º","2019-03-01",{"$f":"IF(J24=\"DS\",H24+1460,H24+728)","v":"2023-02-28"},"DS","Alexandre Pio Viana","Ativo","LMGV","leticia_alcanfor@hotmail.com","Melhoramento de Plantas"]
["Luana Cruz Vasconcelos","F",202113220012,null,"CAPES       (PROEX)",2021,"1º","2021-03-02",{"$f":"IF(J25=\"DS\",H25+1460,H25+728)-2","v":"2025-02-27"},"DS","Marcelo Vivas","Ativo","LEAG","luanavasconcelos16@hotmail.com","Melhoramento de Plantas"]
["Luis Carlos Loose Coelho","M",202213120018,null,"CAPES       (PROEX)",2022,"1º","2022-03-01",{"$f":"IF(J26=\"DS\",H26+1460,H26+728)","v":"2024-02-27"},"MS","Alexandre Pio Viana","Ativo","LMGV","loose.luis07@gmail.com","Melhoramento de Plantas"]
["Mayara Cazadini Carlos","F",202013220001,2020011705,"FAPERJ",2020,"1º","2020-03-01",{"$f":"IF(J27=\"DS\",H27+1460,H27+728)","v":"2024-02-29"},"DS","Silvaldo Felipe da Silveira","Ativo","LEF","may_cazadini@hotmail.com","Melhoramento de Plantas"]
["Nilmária Natália Veras Reis","F",202113120018,null,"CAPES       (PROEX)",2021,"1º","2021-03-03",{"$f":"IF(J28=\"DS\",H28+1460,H28+728)-3","v":"2023-02-26"},"MS","Alexandre Pio Viana","ativo","LMGV","nilmaria.natalia@gmail.com","Melhoramento de Plantas"]
["Otalício Damásio da Costa Júnior","M",202013220012,2020011284,"CAPES       (PROEX)",2020,"1º","2020-03-01",{"$f":"IF(J29=\"DS\",H29+1460,H29+728)","v":"2024-02-29"},"DS","Virgínia Silva Carvalho","Ativo","LFIT","otaciliodamasio934@hotmail.com","Recursos Genéticos Vegetais"]
["Rafaela Pereira Duarte","F",201913220033,2018005647,"CAPES       (PROEX)",2019,"1º","2020-04-01",{"$f":"IF(J30=\"DS\",H30+1460,H30+728)","v":"2024-03-31"},"DS","Helaine Christine Cancela Ramos","Ativo","LMGV","rafaelapd19@gmail.com","Análise Genômica"]
["Raiane Mariani Santos","F",201913220015,null,"CAPES       (PROEX)",2019,"1º","2019-03-01",{"$f":"IF(J31=\"DS\",H31+1460,H31+728)","v":"2023-02-28"},"DS","Rogério Figueiredo Daher","Ativo","LEAG","raianemarianisantos@gmail.com","Melhoramento de Plantas"]
["Roberta Aparecida de Sales","F",202013220011,2020011233,"CAPES       (PROEX)",2020,"1º","2020-03-01",{"$f":"IF(J32=\"DS\",H32+1460,H32+728)","v":"2024-02-29"},"DS","Virgínia Silva Carvalho","Ativo","LFIT","roberthasalles@hotmail.com","Recursos Genéticos Vegetais"]
["Rosieli Barboza Bispo","F",202013220008,2020011683,"CAPES       (PROEX)",2020,"1º","2020-03-01",{"$f":"IF(J33=\"DS\",H33+1460,H33+728)","v":"2024-02-29"},"DS","Helaine Christine Cancela Ramos","Ativo","LMGV","rosielibarboza.af@hotmail.com","Análise Genômica"]
["Rosimara Barboza Bispo","F",202013220007,null,"CAPES       (PROEX)",2020,"1º","2020-03-01",{"$f":"IF(J34=\"DS\",H34+1460,H34+728)","v":"2024-02-29"},"DS","Rosana Rodrigues","Ativo","LMGV","rosimara.barboza@gmail.com","Recursos Genéticos Vegetais"]
["Rosimeire Barboza Bispo","F",202013220006,null,"CAPES       (PROEX)",2020,"1º","2020-03-01",{"$f":"IF(J35=\"DS\",H35+1460,H35+728)","v":"2024-02-29"},"DS","Antonio Teixeira do Amaral Junior","Ativo","LMGV","rosimeirebarboza1@hotmail.com","Melhoramento de Plantas"]
["Rysley Fernandes de Souza","M",202113220032,null,"CAPES       (PROEX)",2021,"1º","2021-03-15",{"$f":"IF(J36=\"DS\",H36+1460,H36+728)-15","v":"2025-02-27"},"DS","Silvaldo Felipe da Silveira","Ativo","LEF","rysleyfernandes@gmail.com","Melhoramento de Plantas"]
["Talles de Oliveira Santos","M",202013220017,2018055130,"FAPERJ      (Nota 10) ",2020,"1º","2020-03-01",{"$f":"IF(J37=\"DS\",H37+1460,H37+728)","v":"2024-02-29"},"DS","Antonio Teixeira do Amaral Junior","Ativo","LMGV","tallesdeoliveira@live.com","Melhoramento de Plantas"]
["Tamys Luiz Fernandes","M",202113120001,null,"S/BOLSA",2021,"1º","2021-03-02",{"$f":"IF(J38=\"DS\",H38+1460,H38+728)","v":"2023-02-28"},"MS","Leonardo Siqueira Gória","Ativo","LMGV","tamyslf@gmail.com","Melhoramento de Plantas"]
["Vinícius Bohry","M",202213120023,null,"CAPES       (PROEX)",2022,"1º","2022-03-01",{"$f":"IF(J39=\"DS\",H39+1460,H39+728)","v":"2024-02-27"},"MS","Vanildo Silveira","Ativo","LBT","vinin.b99@gmail.com","Análise Genômica"]
["Vivane Mirian Lanhellas Gonçalves","F",202113220016,null,"CAPES       (PROEX)",2021,"1º","2021-03-02",{"$f":"IF(J40=\"DS\",H40+1460,H40+728)-2","v":"2025-02-27"},"DS","Messias Gonzaga Pereira","Ativo","LMGV","vivane-lanhellas@hotmail.com","Melhoramento de Plantas"]

{"sheet":"Orientad x alunos","index":1,"n_rows":20,"n_cols":4,"rows_kept":20,"cut":false,"hidden":false,"merged":[]}
["situação  Aluno","Ativo"]
[]
["Contagem de NOME DO ALUNO","NIVEL"]
["ORIENTADOR","DS","MS","Total Geral"]
["Alexandre Pio Viana",3,1,4]
["Antonio Teixeira do Amaral Junior",4,1,5]
["Clícia Grativol Gaspar",2,null,2]
["Geraldo de Amaral Gravina",1,null,1]
["Gonçalo Apolinário de Souza Filho",1,null,1]
["Helaine Christine Cancela Ramos",6,1,7]
["Leonardo Siqueira Gória",null,1,1]
["Marcelo Vivas",4,2,6]
["Messias Gonzaga Pereira",2,null,2]
["Rogério Figueiredo Daher",5,1,6]
["Rosana Rodrigues",5,null,5]
["Silvaldo Felipe da Silveira",2,1,3]
["Valdirene Moreira Gomes",2,null,2]
["Vanildo Silveira",1,null,1]
["Virgínia Silva Carvalho",3,1,4]
["Total Geral",41,9,50]

{"sheet":"Nº Alunos","index":2,"n_rows":6,"n_cols":4,"rows_kept":6,"cut":false,"hidden":false,"merged":[[0,0,0,5]]}
["TOTAIS DE ALUNOS SELECIONADOS NO PROGRAMA ATÉ A PRESENTE DATA"]
[]
["Contagem de NOME DO ALUNO","NIVEL"]
["situação  Aluno","DS","MS","Total Geral"]
["Ativo",41,9,50]
["Total Geral",41,9,50]

{"sheet":"N° bolsas ","index":3,"n_rows":11,"n_cols":4,"rows_kept":11,"cut":false,"hidden":false,"merged":[]}
["situação  Aluno","(Tudo)"]
[]
["Contar de BOLSA","NIVEL"]
["BOLSA","DS","MS","Total Geral"]
["UENF",2,null,2]
["S/BOLSA",null,1,1]
["FAPERJ",10,null,10]
["CAPES       (PROEX)",27,8,35]
["CNPq         (Cota Prog.)",1,null,1]
["FAPERJ      (Nota 10) ",1,null,1]
["Total Geral",41,9,50]